bitfinex/quotes_SOLUSD_20240909
["timestamp","ask_amount","ask_price","bid_price","bid_amount"]
[1725916612054,36.99948279,137.01,136.93,7.63053942]
[1725916612440,36.94971781,137.04,136.93,57.63053942]
[1725916612643,36.94971781,137.04,136.94,20.0]
[1725916612960,36.94971781,137.04,136.99,5.56e-06]
[1725916613134,36.46067365,137.06,136.96,41.04373982]
[1725916613339,36.46067365,137.06,136.97,20.0]
[1725916613537,36.94971781,137.04,136.96,41.04373982]
[1725916613958,36.26251458,137.02,136.93,7.63053942]
[1725916614272,22.777,137.12,136.93,7.63053942]
[1725916614273,46.11627397,137.0,136.93,7.63053942]
[1725916614573,1.82424277,137.11,136.93,7.63053942]
[1725916614574,10.0,136.98,136.93,7.63053942]
[1725916614755,10.0,136.96,136.93,7.63053942]
[1725916615066,36.73858187,136.99,136.93,7.63053942]
[1725916615276,46.57038217,136.98,136.93,7.63053942]
[1725916615568,10.0,136.96,136.93,7.63053942]
[1725916616071,10.0,136.94,136.93,7.63053942]
[1725916616267,46.73703623,136.96,136.93,7.63053942]
[1725916616971,36.11627397,137.0,136.93,7.63053942]
[1725916617181,10.0,136.96,136.93,7.63053942]
[1725916617764,46.57038217,136.98,136.93,7.63053942]
[1725916617972,10.0,136.96,136.93,7.63053942]
[1725916618142,46.73703623,136.96,136.93,7.63053942]
[1725916619047,46.73703623,136.96,136.93,1.43e-06]
[1725916619273,46.73703623,136.96,136.88,41.04373982]
[1725916619986,36.73703623,136.96,136.91,41.04373982]
[1725916620148,36.99948279,137.01,136.94,28.76733592]
[1725916620346,36.99948279,137.01,136.95,41.04373982]
[1725916620543,36.57602189,137.05,136.97,41.04373982]
[1725916620864,36.38059283,137.09,137.01,5.56e-06]
[1725916621199,10.0,137.09,136.99,0.12549]
[1725916621396,46.38059283,137.09,137.01,41.04373982]
[1725916621694,10.0,137.1,137.02,20.0]
[1725916621903,10.0,137.06,137.02,20.0]
[1725916622109,10.0,137.04,136.99,41.04373982]
[1725916622258,10.0,137.02,136.93,41.04373982]
[1725916622587,10.0,137.02,136.89,50.0]
[1725916622588,10.0,137.0,136.9,41.04373982]
[1725916623691,10.0,137.03,136.93,41.04373982]
[1725916623998,10.0,137.01,136.93,41.04373982]
[1725916624167,10.0,136.98,136.93,41.04373982]
[1725916624373,10.0,136.98,136.91,41.04373982]
[1725916624668,10.0,136.96,136.88,41.04373982]
[1725916625601,10.0,136.93,136.88,41.04373982]
[1725916625778,10.0,137.06,136.87,1.26979381]
[1725916625779,10.0,136.95,136.87,1.26979381]
[1725916626082,10.0,136.93,136.86,7.63302397]
[1725916626289,10.0,136.9,136.86,7.63302397]
[1725916626581,10.0,136.88,136.83,7.63610494]
[1725916626756,1.82569107,136.97,136.83,7.63610494]
[1725916626757,10.0,136.86,136.83,7.63610494]
[1725916626960,10.0,136.84,136.78,41.04373982]
[1725916627184,10.0,136.84,136.78,7.6387996]
[1725916627773,10.0,136.82,136.78,7.6387996]
[1725916628288,10.0,136.8,136.74,41.04373982]
[1725916628690,10.0,136.78,136.76,7.64102675]
[1725916628871,10.0,136.8,136.71,41.04373982]
[1725916629072,10.0,136.78,136.74,7.64161125]
[1725916629271,10.0,136.76,136.71,41.04373982]
[1725916629472,10.0,136.76,136.71,7.64302363]
[1725916629967,6.5385,136.84,136.71,48.68676345]
[1725916629968,10.0,136.8,136.71,48.68676345]
[1725916630159,10.0,136.78,136.71,48.68676345]
[1725916630362,10.0,136.76,136.71,7.64302363]
[1725916630867,10.0,136.74,136.71,7.64302363]
[1725916631081,10.0,136.74,136.66,42.31636767]
[1725916631287,10.0,136.74,136.69,7.64416158]
[1725916631476,10.0,136.74,136.66,42.31636767]
[1725916631667,10.0,136.74,136.69,7.64460158]
[1725916631872,10.0,136.72,136.69,7.64460158]
[1725916632181,10.0,136.75,136.66,7.64458889]
[1725916632385,10.0,136.72,136.66,7.64458889]
[1725916632761,10.0,136.74,136.66,7.64458889]
[1725916632977,10.0,136.7,136.66,7.64458889]
[1725916633178,10.0,136.72,136.63,41.68583072]
[1725916633381,10.0,136.7,136.63,49.33194232]
[1725916633578,10.12549,136.64,136.63,0.6420909]
[1725916633965,10.0,136.64,136.63,0.6420909]
[1725916634370,10.0,136.58,136.5,41.04373982]
[1725916634981,10.0,136.72,136.58,50.0]
[1725916635190,10.0,136.72,136.63,41.04373982]
[1725916635910,10.0,136.74,136.66,41.04373982]
[1725916636097,10.0,136.74,136.67,20.0]
[1725916636296,18.0302,136.77,136.67,20.0]
[1725916636297,10.0,136.76,136.69,41.04373982]
[1725916636490,10.0,136.76,136.7,20.0]
[1725916636805,18.0302,136.77,136.67,20.0]
[1725916636806,10.0,136.73,136.67,20.0]
[1725916636981,10.0,136.76,136.67,20.0]
[1725916637174,6.4404,136.82,136.7,41.04373982]
[1725916637175,10.0,136.81,136.7,41.04373982]
[1725916637492,52.57386785,136.82,136.71,20.0]
[1725916637699,10.0,136.76,136.71,20.0]
[1725916637993,10.0,136.74,136.68,20.0]
[1725916638179,36.94246283,136.81,136.65,70.0]
[1725916638180,10.0,136.76,136.65,70.0]
[1725916638379,10.0,136.74,136.65,20.0]
[1725916638572,10.0,136.76,136.67,41.04373982]
[1725916638976,10.0,136.76,136.68,20.0]
[1725916639175,10.0,136.76,136.7,41.04373982]
[1725916639401,10.0,136.76,136.71,20.0]
[1725916639580,10.0,136.79,136.73,41.04373982]
[1725916639776,42.57386785,136.82,136.59,50.0]
[1725916639777,10.0,136.73,136.59,50.0]
[1725916640078,10.0,136.73,136.62,48.69062987]
[1725916641100,10.0,136.73,136.62,41.04373982]
[1725916641390,10.0,136.71,136.62,41.04373982]
[1725916641905,10.0,136.68,136.62,41.04373982]
[1725916642073,10.0,136.65,136.59,41.04373982]
[1725916642393,6.4404,136.82,136.57,7.65101657]
[1725916642394,10.0,136.67,136.57,7.65101657]
[1725916642585,10.0,136.65,136.57,7.65101657]
[1725916642779,10.0,136.65,136.56,41.04373982]
[1725916642991,10.0,136.65,136.56,48.69529643]
[1725916643577,10.0,136.62,136.56,41.04373982]
[1725916643785,10.0,136.62,136.53,41.04373982]
[1725916644096,10.0,136.58,136.53,7.65289053]
[1725916644299,10.0,136.61,136.51,41.04373982]
[1725916644507,10.0,136.61,136.52,7.65393329]
[1725916644972,10.0,136.62,136.52,57.65393329]
[1725916645173,7.8694,136.74,136.61,50.0]
[1725916645406,36.28177792,136.74,136.66,41.04373982]
[1725916645693,18.1902,136.79,136.64,41.04373982]
[1725916645694,10.0,136.76,136.64,41.04373982]
[1725916645908,46.50648898,136.76,136.67,41.04373982]
[1725916646083,10.0,136.74,136.68,20.0]
[1725916646283,10.0,136.78,136.7,41.04373982]
[1725916646504,36.15945218,136.77,136.71,65.0]
[1725916646683,10.0,136.78,136.71,20.0]
[1725916648190,10.0,136.8,136.63,29.281432]
[1725916648414,10.0,136.7,136.59,50.0]
[1725916648697,10.0,136.7,136.54,7.5324]
[1725916648698,10.0,136.69,136.6,50.0]
[1725916648899,10.0,136.71,136.62,50.0]
[1725916649198,10.0,136.71,136.63,41.04373982]
[1725916649586,10.0,136.73,136.63,41.04373982]
[1725916649789,10.0,136.71,136.63,41.04373982]
[1725916649989,10.0,136.69,136.6,41.04373982]
[1725916650189,10.0,136.69,136.6,91.04373982]
[1725916650584,17.9821,136.77,136.57,48.44373982]
[1725916650585,10.0,136.71,136.63,41.04373982]
[1725916650791,17.9821,136.77,136.57,41.04373982]
[1725916650792,10.0,136.73,136.66,41.04373982]
[1725916651295,17.9821,136.77,136.67,20.0]
[1725916651296,10.0,136.71,136.67,20.0]
[1725916651495,10.0,136.69,136.57,91.04373982]
[1725916651695,10.0,136.69,136.6,41.04373982]
[1725916651895,17.9821,136.77,136.6,41.04373982]
[1725916651896,10.0,136.67,136.6,41.04373982]
[1725916653115,10.0,136.61,136.6,13.28963982]
[1725916653443,25.873,136.66,136.51,0.8200845]
[1725916653444,10.0,136.59,136.51,0.8200845]
[1725916653705,25.873,136.66,136.51,0.8200845]
[1725916653706,10.0,136.62,136.52,57.65405149]
[1725916654215,10.0,136.57,136.52,7.65405149]
[1725916654387,10.0,136.55,136.51,0.8200845]
[1725916654865,10.0,136.53,136.51,0.8200845]
[1725916655521,25.873,136.66,136.38,58.4818413]
[1725916655522,10.0,136.47,136.41,7.66021967]
[1725916656117,10.0,136.49,136.41,7.66021967]
[1725916656322,10.0,136.47,136.41,7.66021967]
[1725916656547,10.0,136.47,136.38,0.8449413]
[1725916657050,10.0,136.45,136.39,7.66121665]
[1725916657258,10.0,136.45,136.38,0.8449413]
[1725916657462,10.0,136.45,136.38,8.50718633]
[1725916657747,10.0,136.39,136.38,0.8449413]
[1725916659439,10.0,136.36,136.26,91.04373982]
[1725916659750,10.0,136.37,136.26,91.04373982]
[1725916659924,10.0,136.39,136.29,41.04373982]
[1725916660130,10.0,136.36,136.28,50.0]
[1725916660336,10.0,136.39,136.29,41.04373982]
[1725916660542,10.0,136.39,136.32,41.04373982]
[1725916660969,10.0,136.37,136.32,41.04373982]
[1725916661123,10.0,136.35,136.3,7.6656314]
[1725916661333,10.0,136.35,136.24,52.12162892]
[1725916661648,1.83288728,136.43,136.24,52.12162892]
[1725916661649,10.0,136.33,136.25,7.6684116]
[1725916661950,10.0,136.35,136.26,7.79755766]
[1725916662256,10.0,136.33,136.25,7.6684116]
[1725916662458,10.0,136.35,136.25,7.6684116]
[1725916662766,10.0,136.33,136.25,7.6684116]
[1725916663160,10.0,136.31,136.25,7.6684116]
[1725916663483,10.0,136.28,136.24,0.8449413]
[1725916663765,10.0,136.32,136.24,0.8449413]
[1725916664070,10.0,136.27,136.24,0.8449413]
[1725916664256,10.0,136.28,136.24,0.8449413]
[1725916664572,10.0,136.26,136.24,0.8449413]
[1725916665565,10.0,136.29,136.24,0.8449413]
[1725916665746,10.0,136.26,136.24,0.8449413]
[1725916668077,10.0,136.26,136.11,16.855876]
[1725916668078,10.0,136.23,136.18,7.67418642]
[1725916668246,10.0,136.19,136.14,41.04373982]
[1725916668444,25.2121,136.26,136.11,41.04373982]
[1725916668445,10.0,136.17,136.11,41.04373982]
[1725916668741,10.0,136.15,136.1,0.8449413]
[1725916669185,1.83571652,136.25,136.1,0.8449413]
[1725916669186,10.0,136.12,136.1,0.8449413]
[1725916670374,10.0,136.14,136.1,0.8449413]
[1725916670567,10.0,136.18,136.1,0.8449413]
[1725916670750,10.0,136.2,136.11,41.04373982]
[1725916670954,10.0,136.23,136.14,41.04373982]
[1725916671182,10.0,136.21,136.14,41.04373982]
[1725916671474,10.0,136.16,136.14,41.04373982]
[1725916671652,10.0,136.16,136.15,20.0]
[1725916671853,10.0,136.16,136.1,0.8449413]
[1725916672178,10.0,136.16,136.1,45.8449413]
[1725916672379,10.0,136.16,136.1,0.8449413]
[1725916672686,10.0,136.18,136.1,0.8449413]
[1725916672976,10.0,136.18,136.1,50.8449413]
[1725916673197,10.0,136.11,136.1,0.8449413]
[1725916673749,10.0,136.14,136.1,0.8449413]
[1725916673949,35.2121,136.26,136.1,0.8449413]
[1725916673950,10.0,136.13,136.1,0.8449413]
[1725916674976,10.0,136.19,136.11,41.04373982]
[1725916675176,10.0,136.19,136.12,65.0]
[1725916677376,10.0,136.21,136.13,0.12549]
[1725916677548,10.0,136.19,136.12,65.0]
[1725916677760,10.0,136.12,136.1,0.8449413]
[1725916680179,0.12549,136.11,136.1,0.8449413]
[1725916680490,10.0,136.12,135.97,0.8449413]
[1725916680491,10.0,136.04,135.97,0.8449413]
[1725916680657,10.0,136.1,136.02,62.99373982]
[1725916680856,10.0,136.1,136.04,41.04373982]
[1725916681058,7.4193,136.19,136.07,41.04373982]
[1725916681059,10.0,136.14,136.07,41.04373982]
[1725916681285,10.0,136.16,136.07,62.99373982]
[1725916681581,10.0,136.18,136.1,41.04373982]
[1725916681758,10.0,136.18,136.11,0.12549]
[1725916681953,10.0,136.16,136.11,65.0]
[1725916682180,10.0,136.16,136.11,20.0]
[1725916682389,10.0,136.18,136.11,20.0]
[1725916682563,10.0,136.18,136.13,41.04373982]
[1725916682903,10.0,136.18,136.11,20.0]
[1725916682904,10.0,136.18,136.14,20.0]
[1725916683187,10.0,136.18,136.02,0.4714247]
[1725916683480,10.0,136.07,136.02,0.4714247]
[1725916683892,10.0,136.04,136.02,0.4714247]
[1725916684586,10.0,136.09,136.02,0.4714247]
[1725916684795,19.3105,136.2,136.03,41.04373982]
[1725916684796,10.0,136.07,136.03,41.04373982]
[1725916685092,10.0,136.09,136.03,41.04373982]
[1725916685600,7.8498,136.18,136.06,41.04373982]
[1725916685601,10.0,136.11,136.06,41.04373982]
[1725916685970,10.0,136.09,136.07,20.0]
[1725916686178,7.8498,136.18,136.02,0.4714247]
[1725916686179,10.0,136.05,136.04,20.0]
[1725916686493,10.0,136.05,136.02,0.4714247]
[1725916686789,10.0,136.03,136.02,0.4714247]
[1725916687688,10.0,136.05,136.02,0.4714247]
[1725916687903,7.8498,136.18,136.02,41.51516452]
[1725916687904,10.0,136.09,136.02,41.51516452]
[1725916688400,10.0,136.11,136.05,41.04373982]
[1725916688571,10.0,136.13,136.07,41.04373982]
[1725916688781,10.0,136.04,136.02,0.4714247]
[1725916691388,10.0,136.11,136.03,0.12549]
[1725916691571,10.0,136.14,136.08,41.04373982]
[1725916691773,10.0,136.14,136.09,20.0]
[1725916692170,10.0,136.16,136.11,41.04373982]
[1725916692370,10.0,136.18,136.12,20.0]
[1725916692995,10.0,136.16,136.12,20.0]
[1725916693173,10.0,136.18,136.12,20.0]
[1725916693774,10.0,136.18,136.13,0.12549]
[1725916693975,10.0,136.18,136.02,19.8690247]
[1725916693976,10.0,136.2,136.07,7.80174655]
[1725916694188,10.0,136.1,136.03,41.04373982]
[1725916694512,10.0,136.08,136.02,0.4714247]
[1725916695015,10.0,136.04,136.02,0.4714247]
[1725916697102,7.6531,136.18,136.02,0.4714247]
[1725916697103,10.0,136.06,136.02,0.4714247]
[1725916697317,10.0,136.04,136.02,0.4714247]
[1725916697600,10.0,136.06,136.02,0.4714247]
[1725916698886,10.0,136.03,136.02,0.4714247]
[1725916700080,10.0,136.05,136.02,0.4714247]
[1725916700282,10.0,135.98,135.97,41.04373982]
[1725916700511,7.6763,136.04,135.85,51.0614047]
[1725916700512,10.0,135.94,135.85,51.0614047]
[1725916700681,10.0,135.94,135.86,60.0]
[1725916701009,10.0,135.96,135.89,41.04373982]
[1725916701609,10.0,135.98,135.92,41.04373982]
[1725916701787,10.0,136.0,135.92,41.04373982]
[1725916701985,10.0,136.02,135.95,41.04373982]
[1725916702187,10.0,136.04,135.95,91.04373982]
[1725916702414,10.0,136.04,135.98,41.04373982]
[1725916702985,10.0,136.03,135.98,41.04373982]
[1725916703382,10.0,136.05,135.99,20.0]
[1725916703594,10.0,136.05,136.0,45.12549]
[1725916703802,10.0,136.06,136.01,61.04373982]
[1725916704412,10.0,136.09,136.02,45.12549]
[1725916704588,10.0,136.09,136.03,20.0]
[1725916704796,10.0,136.07,136.03,20.0]
[1725916705204,10.0,136.07,135.92,6.30367839]
[1725916705413,10.0,135.97,135.9,50.0]
[1725916705717,10.0,135.97,135.88,50.0]
[1725916706025,10.0,135.97,135.9,41.04373982]
[1725916706225,10.0,135.92,135.89,6.06069314]
[1725916706590,10.0,135.92,135.85,15.13159784]
[1725916706910,10.0,135.9,135.85,22.09454858]
[1725916707088,10.0,135.88,135.85,7.12209784]
[1725916707312,10.0,135.88,135.85,1.0614047]
[1725916707506,10.0,135.86,135.85,1.0614047]
[1725916709208,29.6922,135.98,135.85,1.0614047]
[1725916709209,10.0,135.9,135.85,1.0614047]
[1725916709617,10.0,135.92,135.87,41.45432158]
[1725916709822,10.0,135.9,135.85,1.0614047]
[1725916710335,10.0,135.92,135.87,41.45432158]
[1725916710528,10.0,135.92,135.85,1.0614047]
[1725916710728,10.0,135.86,135.85,1.0614047]
[1725916713942,10.0,135.88,135.85,1.0614047]
[1725916714635,10.0,135.84,135.83,0.43068953]
[1725916718231,10.0,135.86,135.83,0.43068953]
[1725916719135,10.0,135.88,135.83,0.43068953]
[1725916719447,10.0,135.88,135.39,17.07253706]
[1725916719448,10.0,135.74,135.65,39.7341]
[1725916719733,10.0,135.76,135.65,60.62602158]
[1725916719932,10.0,135.74,135.67,66.0922]
[1725916720140,10.0,135.75,135.67,16.0922]
[1725916720437,10.0,135.75,135.67,49.50042158]
[1725916720614,10.0,135.73,135.67,49.50042158]
[1725916721009,10.0,135.75,135.67,49.50042158]
[1725916721538,10.0,135.77,135.68,42.51572628]
[1725916721718,10.0,135.79,135.7,50.0]
[1725916721916,8.1238,135.88,135.7,50.0]
[1725916721917,10.0,135.81,135.72,91.45432158]
[1725916722112,10.0,135.81,135.75,41.45432158]
[1725916722327,10.0,135.81,135.76,45.0]
[1725916722530,10.0,135.83,135.76,45.0]
[1725916723258,10.0,135.78,135.77,20.0]
[1725916723441,10.0,135.78,135.7,20.0]
[1725916723641,7.9902,135.95,135.7,20.0]
[1725916723642,10.0,135.8,135.72,41.45432158]
[1725916723838,10.0,135.8,135.73,20.0]
[1725916724061,10.0,135.83,135.75,91.45432158]
[1725916724266,10.0,135.87,135.81,41.45432158]
[1725916724461,10.0,135.89,135.81,41.45432158]
[1725916724754,10.0,135.89,135.82,65.12549]
[1725916725331,10.0,135.86,135.82,20.0]
[1725916725558,10.0,135.84,135.82,20.0]
[1725916725738,10.0,135.84,135.79,20.0]
[1725916725939,10.0,135.81,135.79,20.0]
[1725916726132,10.0,135.81,135.75,41.45432158]
[1725916726133,10.0,135.81,135.76,20.0]
[1725916726336,10.0,135.81,135.75,41.45432158]
[1725916726539,10.0,135.83,135.75,91.45432158]
[1725916726832,10.0,135.83,135.75,41.45432158]
[1725916727253,10.0,135.87,135.78,0.12549]
[1725916727457,10.0,135.85,135.81,0.12549]
[1725916727646,7.69584733,135.94,135.81,0.12549]
[1725916727647,10.0,135.87,135.81,65.12549]
[1725916727956,10.0,135.87,135.82,41.45432158]
[1725916728164,10.0,135.87,135.83,20.0]
[1725916728340,10.0,135.85,135.83,20.0]
[1725916728661,10.0,135.85,135.77,41.45432158]
[1725916728830,10.0,135.85,135.8,41.45432158]
[1725916729027,10.0,135.83,135.81,20.0]
[1725916729647,10.0,135.85,135.81,20.0]
[1725916730633,10.0,135.87,135.82,86.57981158]
[1725916730829,10.0,135.87,135.83,20.0]
[1725916732046,10.0,135.84,135.83,20.0]
[1725916732356,10.0,135.94,135.71,7.5066]
[1725916732357,10.0,135.82,135.77,41.45432158]
[1725916733048,10.0,135.84,135.79,41.45432158]
[1725916733363,10.0,135.82,135.79,41.45432158]
[1725916733659,10.0,135.84,135.8,20.0]
[1725916734030,10.0,135.84,135.81,0.12549]
[1725916734263,10.0,135.82,135.8,20.0]
[1725916734443,10.0,135.82,135.75,41.45432158]
[1725916734829,10.0,135.82,135.77,41.45432158]
[1725916735054,7.69374883,135.96,135.71,14.70367568]
[1725916735055,10.0,135.84,135.79,41.45432158]
[1725916735248,10.0,135.84,135.81,41.45432158]
[1725916736072,10.0,135.84,135.82,20.0]
[1725916736355,10.0,135.86,135.82,20.0]
[1725916737060,10.0,135.86,135.83,0.12549]
[1725916737267,10.0,135.89,135.83,45.12549]
[1725916737480,10.0,135.89,135.87,41.45432158]
[1725916737763,10.0,135.89,135.88,20.0]
[1725916738136,10.0,135.89,135.86,20.0]
[1725916738541,10.0,135.89,135.85,0.12549]
[1725916738741,17.8125,136.01,135.88,41.45432158]
[1725916738742,10.0,135.91,135.88,41.45432158]
[1725916738966,10.0,135.91,135.9,41.45432158]
[1725916739138,10.0,135.91,135.9,61.45432158]
[1725916739941,10.0,135.94,135.9,61.57981158]
[1725916740151,10.0,135.96,135.93,41.45432158]
[1725916740346,10.0,135.96,135.94,20.0]
[1725916743664,10.0,135.96,135.92,20.0]
[1725916743956,10.0,135.96,135.91,41.45432158]
[1725916743957,10.0,135.92,135.91,41.45432158]
[1725916745352,10.0,135.92,135.91,61.45432158]
[1725916746254,10.0,135.88,135.86,1.27842651]
[1725916746454,10.0,135.86,135.81,41.45432158]
[1725916746652,10.0,135.86,135.81,42.73309085]
[1725916746849,271.80899922,136.07,135.82,20.7424]
[1725916746850,0.12549,136.0,135.82,20.7424]
[1725916747067,1.83840264,136.11,135.9,7.6235]
[1725916747280,1.83763695,136.1,136.01,41.45432158]
[1725916747573,0.4171948,136.13,136.02,50.76227015]
[1725916747773,0.4171948,136.13,136.04,41.45432158]
[1725916748078,0.4171948,136.13,136.07,41.45432158]
[1725916748254,0.4171948,136.13,136.03,20.0]
[1725916748605,10.0,136.08,135.95,41.45432158]
[1725916748767,2.2542245,136.13,135.97,41.45432158]
[1725916748768,10.0,136.11,135.97,41.45432158]
[1725916748952,0.4171948,136.13,135.84,7.8797]
[1725916748953,8.2142,136.04,135.84,7.8797]
[1725916749158,8.2142,136.04,135.88,41.45432158]
[1725916749369,29.9801,136.06,135.94,41.45432158]
[1725916749370,19.9801,136.06,135.94,41.45432158]
[1725916749553,8.2142,136.12,135.87,41.45432158]
[1725916749554,8.2142,136.12,135.97,41.45432158]
[1725916749759,8.2142,136.12,136.0,41.45432158]
[1725916749959,20.3972948,136.13,136.03,41.45432158]
[1725916750477,20.3972948,136.13,136.04,20.0]
[1725916750982,20.3972948,136.13,136.06,41.45432158]
[1725916751284,0.4171948,136.13,136.07,20.0]
[1725916751678,0.4171948,136.13,136.02,20.0]
[1725916752176,0.4171948,136.13,136.04,41.45432158]
[1725916752351,0.12549,136.12,136.05,20.0]
[1725916752751,0.4171948,136.13,136.05,20.0]
[1725916752949,0.4171948,136.13,136.07,41.45432158]
[1725916753166,0.4171948,136.13,136.08,20.0]
[1725916754560,0.4171948,136.13,136.06,20.0]
[1725916754760,0.4171948,136.13,136.07,41.45432158]
[1725916754951,0.4171948,136.13,136.08,20.0]
[1725916756265,0.4171948,136.13,136.09,41.45432158]
[1725916756461,0.4171948,136.13,136.1,20.0]
[1725916756676,0.4171948,136.13,136.11,41.45432158]
[1725916757182,0.4171948,136.13,136.12,20.0]
[1725916757560,0.8365995,136.26,136.12,20.0]
[1725916757867,0.8365995,136.26,136.17,41.45432158]
[1725916758059,0.8365995,136.26,136.18,20.0]
[1725916759284,2.67179619,136.26,136.18,20.0]
[1725916759587,2.67179619,136.26,136.15,20.0]
[1725916759788,2.67179619,136.26,136.12,41.45432158]
[1725916759789,12.67179619,136.26,136.13,20.0]
[1725916759990,0.8365995,136.26,136.13,20.0]
[1725916760371,0.8365995,136.26,136.25,41.45432158]
[1725916760722,0.8365995,136.26,136.25,61.45432158]
[1725916761067,7.611,136.39,136.25,61.45432158]
[1725916761264,1.83348552,136.38,136.26,20.0]
[1725916761467,10.0,136.37,136.26,20.0]
[1725916761699,1.83427929,136.36,136.26,20.0]
[1725916761866,7.611,136.39,136.23,20.0]
[1725916762071,7.611,136.39,136.27,41.45432158]
[1725916762380,7.611,136.39,136.28,20.0]
[1725916762778,9.44446057,136.39,136.28,20.0]
[1725916762982,7.611,136.39,136.28,20.0]
[1725916764077,9.44451104,136.39,136.28,20.0]
[1725916764385,7.611,136.39,136.28,20.0]
[1725916765277,7.611,136.39,136.28,41.45432158]
[1725916765473,0.8365995,136.4,136.3,41.45432158]
[1725916765692,0.8365995,136.4,136.31,20.0]
[1725916765878,0.8365995,136.4,136.33,41.45432158]
[1725916766195,0.8365995,136.4,136.34,20.0]
[1725916767700,0.8365995,136.4,136.33,20.0]
[1725916767996,0.8365995,136.4,136.34,41.45432158]
[1725916768191,0.8365995,136.4,136.35,20.0]
[1725916770396,0.8365995,136.4,136.32,41.45432158]
[1725916770397,0.8365995,136.4,136.33,20.0]
[1725916771886,0.8365995,136.4,136.3,20.0]
[1725916772271,0.8365995,136.4,136.3,35.77391997]
[1725916772474,0.8365995,136.4,136.3,22.937353]
[1725916773605,0.12549,136.39,136.3,22.937353]
[1725916773802,0.12549,136.39,136.3,20.0]
[1725916774102,0.8365995,136.4,136.3,32.83656697]
[1725916774478,0.8365995,136.4,136.35,41.45432158]
[1725916774682,0.8365995,136.4,136.36,20.0]
[1725916774985,0.8365995,136.4,136.37,41.45432158]
[1725916775184,0.8365995,136.4,136.38,20.0]
[1725916777304,0.8365995,136.4,136.35,20.0]
[1725916777480,0.8365995,136.4,136.36,41.45432158]
[1725916777683,0.8365995,136.4,136.37,20.0]
[1725916778194,0.8365995,136.4,136.29,44.39177858]
[1725916778399,0.8365995,136.4,136.27,41.45432158]
[1725916778703,0.8365995,136.4,136.27,54.29088855]
[1725916778877,0.12549,136.39,136.28,12.83656697]
[1725916779077,0.12549,136.39,136.29,41.45432158]
[1725916779297,0.8365995,136.4,136.29,41.45432158]
[1725916779498,0.8365995,136.4,136.32,41.45432158]
[1725916779710,0.8365995,136.4,136.33,12.83656697]
[1725916780001,0.8365995,136.4,136.3,12.83656697]
[1725916780200,0.8365995,136.4,136.31,61.45432158]
[1725916780406,0.8365995,136.4,136.31,74.29088855]
[1725916781402,0.12549,136.39,136.31,20.0]
[1725916781696,1.95887124,136.39,136.27,54.29088855]
[1725916781903,19.57407124,136.39,136.22,41.45432158]
[1725916782197,0.12549,136.37,136.22,44.39294258]
[1725916782416,1.95972198,136.37,136.2,54.29088855]
[1725916783005,21.95972198,136.37,136.2,54.29088855]
[1725916783317,0.12549,136.35,136.21,10.17103883]
[1725916783502,1.95978809,136.35,136.22,12.83656697]
[1725916785528,21.95978809,136.35,136.18,41.45432158]
[1725916785701,0.12549,136.33,136.18,54.29088855]
[1725916785897,1.96029219,136.33,136.18,54.29088855]
[1725916786321,1.96029219,136.33,136.19,12.83656697]
[1725916787198,0.12549,136.33,136.2,10.17103883]
[1725916787400,7.67348946,136.34,136.22,41.45432158]
[1725916787608,1.83418074,136.37,136.23,32.83656697]
[1725916787803,27.67177223,136.37,136.23,32.83656697]
[1725916788009,22.62813875,136.38,136.24,41.45432158]